bitfinex/quotes_BTCUSD_20250219
["timestamp","ask_amount","ask_price","bid_price","bid_amount"]
[1739990325366,0.156059,96117.0,96116.0,0.10250365]
[1739990325790,0.03194952,96121.0,96109.0,0.0008506]
[1739990325791,0.156062,96116.0,96114.0,0.001]
[1739990325965,0.208078,96118.0,96114.0,0.001]
[1739990326317,0.156063,96115.0,96114.0,0.001]
[1739990326523,0.156063,96115.0,96109.0,0.0008506]
[1739990326729,0.156063,96115.0,96110.0,0.10250365]
[1739990327669,0.156061,96116.0,96114.0,0.007]
[1739990327876,0.156061,96116.0,96114.0,0.003]
[1739990328080,0.156063,96115.0,96114.0,0.003]
[1739990328294,0.208076,96119.0,96114.0,0.003]
[1739990328500,0.03194952,96121.0,96114.0,0.003]
[1739990328725,0.156061,96116.0,96114.0,0.003]
[1739990328921,0.156061,96116.0,96110.0,0.10650365]
[1739990329140,0.03194952,96121.0,96110.0,0.10650365]
[1739990329285,0.156064,96115.0,96110.0,0.10950365]
[1739990329896,0.20808,96117.0,96110.0,0.10250365]
[1739990330103,0.156063,96115.0,96114.0,0.004]
[1739990330312,0.15606,96117.0,96114.0,0.004]
[1739990330517,0.15606,96117.0,96110.0,0.10250365]
[1739990330724,0.03194952,96121.0,96112.0,0.0008506]
[1739990330966,0.156063,96116.0,96112.0,0.0008506]
[1739990331382,0.156063,96115.0,96114.0,0.005]
[1739990331626,0.156063,96115.0,96112.0,0.0008506]
[1739990332010,0.156063,96115.0,96112.0,0.0038506]
[1739990332651,0.208075,96119.0,96112.0,0.0038506]
[1739990333018,0.156066,96113.0,96112.0,0.0038506]
[1739990333221,0.156066,96113.0,96112.0,0.0008506]
[1739990333407,0.156066,96113.0,96112.0,0.0058506]
[1739990333977,0.156066,96113.0,96112.0,0.0138506]
[1739990334182,0.156066,96113.0,96112.0,0.0048506]
[1739990334604,0.156066,96113.0,96112.0,0.0108506]
[1739990336081,0.156066,96113.0,96112.0,0.0068506]
[1739990336276,0.156066,96113.0,96112.0,0.0118506]
[1739990338936,0.156066,96113.0,96112.0,0.0068506]
[1739990339358,0.156066,96113.0,96112.0,0.0098506]
[1739990339566,0.156066,96113.0,96112.0,0.0038506]
[1739990339782,0.156066,96113.0,96112.0,0.0078506]
[1739990341245,0.156064,96115.0,96112.0,0.0078506]
[1739990341407,0.01630589,96118.0,96112.0,0.0078506]
[1739990341408,0.156064,96114.0,96112.0,0.0078506]
[1739990341604,0.01630589,96118.0,96113.0,0.25856965]
[1739990341805,0.01630589,96118.0,96114.0,0.0808]
[1739990342124,0.0008524,96123.0,96116.0,0.15606]
[1739990342450,0.0008524,96123.0,96117.0,0.10250365]
[1739990342585,0.1569024,96123.0,96117.0,0.10250365]
[1739990342784,0.0008524,96123.0,96117.0,0.10250365]
[1739990343202,0.2089204,96123.0,96117.0,0.10250365]
[1739990343415,0.156058,96118.0,96117.0,0.10250365]
[1739990343636,0.156056,96119.0,96117.0,0.10250365]
[1739990343846,0.156056,96119.0,96117.0,0.10450365]
[1739990344058,0.208073,96120.0,96117.0,0.10750365]
[1739990344259,0.156058,96118.0,96117.0,0.10750365]
[1739990344482,0.156058,96118.0,96117.0,0.10450365]
[1739990345497,0.156056,96119.0,96117.0,0.10450365]
[1739990345708,0.156055,96120.0,96117.0,0.10450365]
[1739990345966,0.2089206,96122.0,96117.0,0.10250365]
[1739990346213,0.156056,96119.0,96117.0,0.10550365]
[1739990346440,0.156058,96118.0,96117.0,0.10550365]
[1739990346634,0.156058,96118.0,96117.0,0.10250365]
[1739990346949,0.156058,96118.0,96117.0,0.10850365]
[1739990347153,0.156056,96119.0,96117.0,0.10450365]
[1739990347367,0.156056,96119.0,96117.0,0.10250365]
[1739990347565,0.156056,96119.0,96117.0,0.10950365]
[1739990348220,0.156058,96118.0,96117.0,0.10950365]
[1739990348418,0.0008516,96122.0,96117.0,0.003]
[1739990348642,0.156058,96118.0,96117.0,0.007]
[1739990349604,0.156058,96118.0,96117.0,0.004]
[1739990349847,0.156058,96118.0,96117.0,0.007]
[1739990350042,0.156058,96118.0,96117.0,0.003]
[1739990350210,0.156066,96113.0,96112.0,0.0008506]
[1739990351490,0.156066,96113.0,96112.0,0.0038506]
[1739990351725,0.03194952,96121.0,96112.0,0.10635425]
[1739990351971,0.03194952,96121.0,96119.0,0.156055]
[1739990352220,0.03194952,96121.0,96113.0,0.18370365]
[1739990352440,0.03194952,96121.0,96117.0,0.156058]
[1739990352681,0.03194952,96121.0,96118.0,0.10250365]
[1739990353131,0.03194952,96121.0,96118.0,0.25856165]
[1739990353328,0.03194952,96121.0,96118.0,0.10250365]
[1739990354028,0.03194952,96121.0,96118.0,0.10450365]
[1739990354486,0.03194952,96121.0,96118.0,0.10750365]
[1739990357979,0.00128911,96121.0,96120.0,0.156054]
[1739990358178,0.00128911,96121.0,96120.0,0.38505765]
[1739990359139,0.00128911,96121.0,96120.0,0.38705765]
[1739990359557,0.00128911,96121.0,96120.0,0.38505765]
[1739990360000,0.00128911,96121.0,96120.0,0.39905765]
[1739990360222,0.00128911,96121.0,96120.0,0.39205765]
[1739990360650,0.00128911,96121.0,96120.0,0.39905765]
[1739990366234,0.00128911,96121.0,96120.0,0.4135985]
[1739990367174,0.00128911,96121.0,96120.0,0.5269297]
[1739990367997,0.00128911,96121.0,96120.0,0.53245545]
[1739990368625,0.00846063,96148.0,96121.0,0.01454085]
[1739990368776,0.00846063,96148.0,96140.0,0.156021]
[1739990368777,0.156012,96147.0,96140.0,0.156021]
[1739990368983,0.156012,96147.0,96138.0,0.208033]
[1739990369183,0.156012,96147.0,96139.0,0.10250365]
[1739990369467,0.1950251,96148.0,96141.0,0.15602]
[1739990369578,0.156012,96147.0,96139.0,0.10250365]
[1739990369793,0.156012,96147.0,96140.0,0.156022]
[1739990370218,0.156012,96147.0,96140.0,0.156021]
[1739990370453,0.0390151,96148.0,96139.0,0.10650365]
[1739990370655,0.156017,96144.0,96139.0,0.10250365]
[1739990370857,0.2470281,96148.0,96139.0,0.10250365]
[1739990371056,0.0390151,96148.0,96120.0,0.1265]
[1739990371287,0.156021,96141.0,96139.0,0.003]
[1739990371734,0.156021,96141.0,96124.0,0.1080294]
[1739990371735,0.156021,96141.0,96125.0,0.208062]
[1739990371939,0.156021,96141.0,96139.0,0.002]
[1739990372088,0.156021,96141.0,96140.0,0.004]
[1739990372269,0.156021,96141.0,96139.0,0.002]
[1739990372469,0.156019,96142.0,96139.0,0.005]
[1739990372693,0.156019,96142.0,96139.0,0.009]
[1739990373101,0.156018,96143.0,96139.0,0.009]
[1739990373439,0.156018,96143.0,96139.0,0.004]
[1739990373642,0.156018,96143.0,96139.0,0.009]
[1739990373790,0.156019,96142.0,96139.0,0.009]
[1739990373972,0.156019,96142.0,96134.0,0.31054465]
[1739990374386,0.156019,96142.0,96135.0,0.156029]
[1739990374592,0.0390151,96148.0,96136.0,0.17780365]
[1739990374864,0.0390151,96148.0,96139.0,0.21203]
[1739990375028,0.0390151,96148.0,96141.0,0.156019]
[1739990375231,0.0390151,96148.0,96142.0,0.156019]
[1739990375437,0.0390151,96148.0,96140.0,0.10250365]
[1739990375839,0.0390151,96148.0,96142.0,0.156017]
[1739990376019,0.0390151,96148.0,96143.0,0.156017]
[1739990376220,0.0390151,96148.0,96140.0,0.31053165]
[1739990376486,0.1950261,96148.0,96141.0,0.156019]
[1739990376961,0.1950261,96148.0,96140.0,0.31053265]
[1739990377166,0.1950261,96148.0,96142.0,0.003]
[1739990377320,0.1950261,96148.0,96142.0,0.005]
[1739990377526,0.1950261,96148.0,96142.0,0.161017]
[1739990377816,0.1954513,96148.0,96142.0,0.159017]
[1739990378028,0.0394403,96148.0,96143.0,0.156017]
[1739990378229,0.0394403,96148.0,96140.0,0.31253265]
[1739990378427,0.0394403,96148.0,96140.0,0.10450365]
[1739990378654,0.0394403,96148.0,96140.0,0.10250365]
[1739990378889,0.0394403,96148.0,96144.0,0.156015]
[1739990379078,0.0394403,96148.0,96143.0,0.208023]
[1739990379283,0.0394403,96148.0,96145.0,0.156013]
[1739990379435,0.0394403,96148.0,96142.0,0.002]
[1739990379639,0.0394403,96148.0,96145.0,0.156012]
[1739990379838,0.0394403,96148.0,96145.0,0.156013]
[1739990380130,0.0394403,96148.0,96142.0,0.002]
[1739990380337,0.0394403,96148.0,96140.0,0.10250365]
[1739990380513,0.0394403,96148.0,96145.0,0.156014]
[1739990381091,0.0394403,96148.0,96143.0,0.156016]
[1739990381429,0.0394403,96148.0,96144.0,0.10250365]
[1739990381627,0.0394403,96148.0,96147.0,0.156011]
[1739990381862,0.0394403,96148.0,96147.0,0.25851465]
[1739990382435,0.0394403,96148.0,96147.0,0.33391465]
[1739990383669,0.00055627,96148.0,96147.0,0.33691465]
[1739990383881,0.00055627,96148.0,96147.0,0.34091465]
[1739990384012,0.00055627,96148.0,96147.0,0.3554555]
[1739990384226,0.00055627,96148.0,96147.0,0.5154867]
[1739990384842,0.00055627,96148.0,96147.0,0.5124867]
[1739990385046,0.00055627,96148.0,96147.0,0.5114867]
[1739990385472,0.00055627,96148.0,96147.0,0.5184867]
[1739990385692,0.00055627,96148.0,96147.0,0.5114867]
[1739990386101,0.00055627,96148.0,96147.0,0.5184867]
[1739990386305,0.00055627,96148.0,96147.0,0.52100698]
[1739990386714,0.00055627,96148.0,96147.0,0.52800698]
[1739990388161,0.00055627,96148.0,96147.0,0.5224867]
[1739990390080,0.00055627,96148.0,96147.0,0.5233377]
[1739990393517,0.15656527,96148.0,96147.0,0.23068585]
[1739990394424,0.15656527,96148.0,96147.0,0.22368585]
[1739990394630,0.15656527,96148.0,96147.0,0.23068585]
[1739990394837,0.00055627,96148.0,96147.0,0.23068585]
[1739990395419,0.15656527,96148.0,96147.0,0.11035465]
[1739990395823,0.15656527,96148.0,96147.0,0.11735465]
[1739990396222,0.15656527,96148.0,96147.0,0.11035465]
[1739990396576,0.15656527,96148.0,96147.0,0.11735465]
[1739990396987,0.00055627,96148.0,96147.0,0.11735465]
[1739990397166,0.15656527,96148.0,96147.0,0.11735465]
[1739990398167,0.00055627,96148.0,96147.0,0.11735465]
[1739990398472,0.15656527,96148.0,96147.0,0.11735465]
[1739990399890,0.15656527,96148.0,96147.0,0.014851]
[1739990400645,0.15656527,96148.0,96147.0,0.007851]
[1739990400861,0.15656527,96148.0,96147.0,0.010851]
[1739990401068,0.00055627,96148.0,96147.0,0.010851]
[1739990401346,0.15656527,96148.0,96147.0,0.010851]
[1739990401544,0.00055627,96148.0,96147.0,0.11335465]
[1739990401716,0.00055627,96148.0,96147.0,0.31136565]
[1739990401917,0.00055627,96148.0,96147.0,0.31636565]
[1739990402327,0.00055627,96148.0,96147.0,0.15235465]
[1739990402559,0.00055627,96148.0,96147.0,0.16135465]
[1739990402901,0.00055627,96148.0,96147.0,0.31236565]
[1739990403116,0.00055627,96148.0,96147.0,0.31536565]
[1739990403334,0.00055627,96148.0,96147.0,0.16535465]
[1739990404158,0.00055627,96148.0,96147.0,0.32136565]
[1739990404401,0.00055627,96148.0,96147.0,0.16535465]
[1739990404911,0.00055627,96148.0,96147.0,0.32136565]
[1739990405583,0.00055627,96148.0,96147.0,0.16535465]
[1739990406660,0.0008508,96150.0,96147.0,0.16535465]
[1739990406661,0.00044499,96150.0,96147.0,0.16535465]
[1739990406855,0.00044499,96150.0,96148.0,0.10250365]
[1739990407493,0.156007,96149.0,96148.0,0.10250365]
[1739990408898,0.156009,96148.0,96147.0,0.000851]
[1739990409133,0.381009,96148.0,96147.0,0.000851]
[1739990409335,0.39730929,96148.0,96147.0,0.000851]
[1739990410195,0.39730929,96148.0,96147.0,0.009851]
[1739990410402,0.6233638,96148.0,96147.0,0.009]
[1739990410604,3.23221615,96148.0,96147.0,0.009]
[1739990410804,3.23221615,96148.0,96147.0,1e-08]
[1739990411147,0.56886015,96148.0,96147.0,1e-08]
[1739990411547,0.306056,96119.0,96118.0,0.0008506]
[1739990411732,0.306056,96119.0,96118.0,0.00098167]
[1739990411964,0.15,96119.0,96118.0,0.00098167]
[1739990412168,0.306056,96119.0,96118.0,0.00098167]
[1739990413002,0.306056,96119.0,96118.0,0.00598167]
[1739990413196,0.306056,96119.0,96118.0,0.00098167]
[1739990414583,0.3486078,96119.0,96118.0,0.00498167]
[1739990414786,0.3486078,96119.0,96118.0,0.00798167]
[1739990415586,0.3486078,96119.0,96118.0,0.00498167]
[1739990416050,0.3486078,96119.0,96118.0,0.00098167]
[1739990416357,0.3486078,96119.0,96118.0,0.00198167]
[1739990417510,0.3434937,96119.0,96118.0,0.00198167]
[1739990417716,0.1986078,96119.0,96118.0,0.00198167]
[1739990417897,0.4167788,96119.0,96118.0,0.00198167]
[1739990418048,0.3270128,96119.0,96118.0,0.00198167]
[1739990418255,0.31887128,96119.0,96118.0,0.00098167]
[1739990418489,0.19046628,96119.0,96118.0,0.00298167]
[1739990418661,0.19046628,96119.0,96118.0,0.00098167]
[1739990419010,0.19046628,96119.0,96118.0,0.00298167]
[1739990419564,0.35004228,96119.0,96118.0,0.00298167]
[1739990421079,0.19046628,96119.0,96118.0,0.00298167]
[1739990421278,0.53935828,96119.0,96118.0,0.00298167]
[1739990422577,0.46002928,96119.0,96118.0,0.00298167]
[1739990423374,0.46002928,96119.0,96118.0,0.00098167]
[1739990423932,0.61002928,96119.0,96118.0,0.00098167]
[1739990424987,0.61002928,96119.0,96118.0,0.00298167]
[1739990425263,0.37851813,96119.0,96118.0,0.00098167]
[1739990425515,0.38051813,96119.0,96118.0,0.00098167]
[1739990425739,0.53457413,96119.0,96118.0,0.00098167]
[1739990425986,0.53057413,96119.0,96118.0,0.00098167]
[1739990426204,0.57529829,96119.0,96118.0,0.00098167]
[1739990426656,0.57972389,96119.0,96118.0,0.00098167]
[1739990427112,0.59603042,96119.0,96118.0,0.00098167]
[1739990427784,0.59203042,96119.0,96118.0,0.00098167]
[1739990427951,0.59003042,96119.0,96118.0,0.00098167]
[1739990428150,0.59603042,96119.0,96118.0,0.00098167]
[1739990430372,0.306066,96113.0,96109.0,0.0008506]
[1739990430557,1.35052383,96113.0,96109.0,0.0008506]
[1739990430775,1.35300783,96113.0,96109.0,0.0008506]
[1739990431742,0.30719683,96113.0,96109.0,0.0008506]
[1739990431920,1.45984383,96113.0,96109.0,0.0008506]
[1739990432119,1.45986483,96113.0,96109.0,0.0008506]
[1739990433429,0.306071,96110.0,96109.0,0.0008506]
[1739990433635,1.689091,96110.0,96109.0,0.0008506]
[1739990433835,1.859218,96110.0,96109.0,0.0008506]
[1739990434660,1.862218,96110.0,96109.0,0.0008506]
[1739990435462,1.864218,96110.0,96109.0,0.0008506]
[1739990436230,0.15611,96086.0,96085.0,0.122]
[1739990437006,0.19782653,96086.0,96085.0,0.122]
[1739990437541,0.19782653,96086.0,96085.0,0.128]
[1739990437730,0.19882653,96086.0,96085.0,0.134]
[1739990442676,0.04271653,96086.0,96085.0,0.134]
[1739990442892,0.19882653,96086.0,96085.0,0.134]
[1739990449623,0.19882653,96086.0,96085.0,0.1348512]
[1739990451648,0.19882653,96086.0,96085.0,0.13115077]
[1739990455786,0.208143,96088.0,96085.0,0.13115077]
[1739990455947,0.15611,96086.0,96085.0,0.13115077]
[1739990456750,0.15611,96086.0,96085.0,0.12515077]
[1739990456965,0.19927016,96086.0,96085.0,0.12515077]
[1739990457202,0.04316016,96086.0,96085.0,0.12515077]
[1739990457429,0.156109,96087.0,96085.0,0.12515077]
[1739990457646,0.15611,96086.0,96085.0,0.12515077]
[1739990458130,0.15611,96086.0,96085.0,0.13015077]
[1739990458343,0.19772812,96086.0,96085.0,0.13015077]
[1739990458544,0.19772812,96086.0,96085.0,0.12515077]
[1739990459284,0.19772812,96086.0,96085.0,0.13115077]
[1739990459480,0.19772812,96086.0,96085.0,0.12515077]
[1739990459680,0.19772812,96086.0,96085.0,0.13115077]
[1739990461504,0.19772812,96086.0,96085.0,0.0128512]
[1739990462413,0.19772812,96086.0,96085.0,0.0068512]
[1739990462745,0.19772812,96086.0,96085.0,0.0028512]
[1739990462992,0.19772812,96086.0,96085.0,0.0058512]
[1739990463289,0.19772812,96086.0,96085.0,0.0038512]
[1739990463533,0.19772812,96086.0,96085.0,0.0008512]
[1739990463789,0.19772812,96086.0,96085.0,0.0028512]
[1739990468138,0.21403726,96086.0,96085.0,0.0028512]
[1739990473995,0.21446296,96086.0,96085.0,0.0028512]
[1739990474217,0.19815382,96086.0,96085.0,0.0028512]
[1739990476859,0.19815382,96086.0,96085.0,0.0008512]
[1739990477069,0.36446338,96086.0,96085.0,0.0008512]
[1739990477212,0.36646338,96086.0,96085.0,0.0008512]
[1739990477785,0.36446338,96086.0,96085.0,0.0008512]
[1739990477992,0.15316469,96086.0,96085.0,0.0008512]
[1739990478169,0.30927469,96086.0,96085.0,0.0008512]
[1739990478413,1.30617068,96086.0,96085.0,0.0008512]
[1739990478663,2.19898333,96086.0,96085.0,0.0008512]
[1739990478881,3.50048633,96086.0,96085.0,0.0008512]
[1739990479095,3.84002033,96086.0,96085.0,0.0008512]
[1739990479778,3.84602033,96086.0,96085.0,0.0008512]
[1739990479968,3.84602033,96086.0,96073.0,0.0004255]
[1739990479969,3.65732033,96086.0,96073.0,0.0004255]
[1739990480184,0.296209,96074.0,96073.0,0.0004255]
[1739990480392,1.885092,96074.0,96073.0,0.0004255]
[1739990480598,0.156158,96056.0,96055.0,0.0817]
[1739990480801,0.15616,96055.0,96053.0,0.0483254]
[1739990481464,0.15616,96055.0,96054.0,0.00086271]
[1739990482096,0.15616,96055.0,96054.0,0.00486271]
[1739990482539,0.15616,96055.0,96054.0,0.00886271]
[1739990484526,0.30616,96055.0,96054.0,0.00886271]
[1739990486022,0.30616,96055.0,96054.0,0.00486271]
[1739990486246,0.30716,96055.0,96054.0,0.00086271]
[1739990486824,0.31116,96055.0,96054.0,0.00086271]
[1739990487333,0.30716,96055.0,96054.0,0.00086271]
[1739990487735,0.30916,96055.0,96054.0,0.00086271]
[1739990487940,0.64834433,96055.0,96054.0,0.00086271]
[1739990488142,1.12360633,96055.0,96054.0,0.00086271]
[1739990488338,1.31502333,96055.0,96054.0,0.00086271]
[1739990488716,1.26078633,96055.0,96054.0,0.00086271]
[1739990488931,0.93989933,96055.0,96054.0,0.00086271]
[1739990489134,0.94089933,96055.0,96054.0,0.00086271]
[1739990489756,0.93889933,96055.0,96054.0,0.00086271]
[1739990490152,0.94089933,96055.0,96054.0,0.00086271]
[1739990493024,0.003,96055.0,96054.0,0.00086271]
[1739990493229,0.15916,96055.0,96054.0,0.00086271]
[1739990493849,0.15716,96055.0,96054.0,0.00086271]
[1739990494054,0.15616,96055.0,96054.0,0.00086271]
[1739990494233,0.15616,96055.0,96054.0,0.00386271]
[1739990496839,0.02104471,96064.0,96054.0,0.00386271]
[1739990497021,0.17104471,96064.0,96054.0,0.00386271]
[1739990497234,0.15616,96055.0,96054.0,0.00386271]
[1739990497440,0.306159,96056.0,96054.0,0.00386271]
[1739990497665,0.15,96056.0,96054.0,0.00386271]
[1739990497844,0.15616,96055.0,96054.0,0.00386271]
[1739990498049,0.15,96056.0,96054.0,0.00386271]
[1739990498520,0.15616,96055.0,96054.0,0.00186271]
[1739990499035,0.15616,96055.0,96054.0,0.00286271]
[1739990499661,0.15616,96055.0,96054.0,0.00086271]
[1739990500095,0.15616,96055.0,96054.0,0.00286271]
[1739990500642,0.15616,96055.0,96054.0,0.00386271]
[1739990501054,0.155728,96055.0,96054.0,0.00386271]
[1739990503003,0.155728,96055.0,96054.0,0.00286271]
[1739990505287,0.155728,96055.0,96054.0,0.00186271]
[1739990505744,0.155728,96055.0,96054.0,0.00086271]
[1739990505993,0.156728,96055.0,96054.0,0.00086271]
[1739990506407,0.155728,96055.0,96054.0,0.00086271]
[1739990506865,0.156728,96055.0,96054.0,0.00086271]
[1739990507313,0.306728,96055.0,96054.0,0.00086271]
[1739990507549,1.8413375,96055.0,96054.0,0.00086271]
[1739990507781,2.1536405,96055.0,96054.0,0.00086271]
[1739990507966,1.3284605,96055.0,96054.0,0.00086271]
[1739990508225,1.3274605,96055.0,96054.0,0.00086271]
[1739990508458,1.220182,96055.0,96054.0,0.00086271]
[1739990508685,1.225182,96055.0,96054.0,0.00086271]
[1739990509117,1.223182,96055.0,96054.0,0.00086271]
[1739990509317,1.227182,96055.0,96054.0,0.00086271]
[1739990509750,1.069889,96055.0,96054.0,0.00086271]
[1739990510205,1.074889,96055.0,96054.0,0.00086271]
[1739990510820,1.071889,96055.0,96054.0,0.00086271]
[1739990511247,1.074889,96055.0,96054.0,0.00086271]
[1739990511653,1.077889,96055.0,96054.0,0.00086271]
[1739990511863,1.072889,96055.0,96054.0,0.00086271]
[1739990512071,1.066889,96055.0,96054.0,0.00086271]
[1739990512279,1.072889,96055.0,96054.0,0.00086271]
[1739990512682,1.069889,96055.0,96054.0,0.00086271]
[1739990512912,1.072889,96055.0,96054.0,0.00086271]
[1739990513633,1.14616499,96055.0,96054.0,0.00086271]
[1739990514072,1.077889,96055.0,96054.0,0.00086271]
[1739990514323,1.074889,96055.0,96054.0,0.00086271]
[1739990514477,1.071889,96055.0,96054.0,0.00086271]
[1739990514846,1.074889,96055.0,96054.0,0.00086271]
[1739990515685,1.069889,96055.0,96054.0,0.00086271]
[1739990516034,1.073889,96055.0,96054.0,0.00086271]
[1739990516455,0.924321,96055.0,96054.0,0.00086271]
[1739990516655,0.94063679,96055.0,96054.0,0.00086271]
[1739990517080,0.93663679,96055.0,96054.0,0.00086271]
[1739990518976,0.94163679,96055.0,96054.0,0.00086271]
[1739990519379,0.93663679,96055.0,96054.0,0.00086271]
[1739990519807,0.94163679,96055.0,96054.0,0.00086271]
[1739990520971,0.30786679,96055.0,96054.0,0.00086271]
[1739990521624,0.30829269,96055.0,96054.0,0.00086271]
[1739990522046,0.30029269,96055.0,96054.0,0.00086271]
[1739990522256,0.17290169,96055.0,96054.0,0.00086271]
[1739990522467,0.0064259,96055.0,96054.0,0.08276271]
[1739990522936,0.1585859,96055.0,96054.0,0.08276271]
[1739990523142,0.1615859,96055.0,96054.0,0.08276271]
[1739990523351,0.0054259,96055.0,96054.0,0.08276271]
[1739990523555,0.0004259,96055.0,96054.0,0.08276271]
[1739990524017,0.0014259,96055.0,96054.0,0.08376271]
[1739990524222,0.0004259,96055.0,96054.0,0.08376271]
[1739990524437,0.208156,96082.0,96057.0,0.0781]
[1739990524625,0.36759038,96086.0,96061.0,0.0494]
[1739990524626,0.208162,96079.0,96061.0,0.0494]
[1739990524822,0.208162,96079.0,96063.0,0.0809]
[1739990525032,0.02059266,96078.0,96065.0,0.0809]
[1739990525286,0.02059266,96078.0,96067.0,0.0809]
[1739990525488,0.02059266,96078.0,96060.0,0.08313113]
[1739990525489,0.02059266,96078.0,96072.0,0.153132]
[1739990525729,0.04269038,96086.0,96072.0,0.33653565]
[1739990525916,0.04269038,96086.0,96072.0,0.38193565]
[1739990526210,0.04269038,96086.0,96072.0,0.37793565]
[1739990526663,0.15611,96086.0,96074.0,0.20817]
[1739990526912,0.15,96118.0,96077.0,0.0765]
[1739990526913,0.02108297,96097.0,96077.0,0.0765]
[1739990527113,0.156114,96084.0,96079.0,0.0769]
[1739990527318,0.156115,96083.0,96080.0,0.10250365]
[1739990527491,0.04197627,96086.0,96080.0,0.10250365]
[1739990527706,0.156119,96080.0,96079.0,0.0769]
[1739990528435,0.156119,96080.0,96079.0,0.0799]
[1739990528805,0.156119,96080.0,96079.0,0.0769]
[1739990529159,0.156119,96080.0,96079.0,0.0799]
[1739990529585,0.156119,96080.0,96079.0,0.0769]
[1739990530000,0.156119,96080.0,96079.0,0.0809]
[1739990530182,0.156119,96080.0,96079.0,0.0849]
[1739990531348,0.156119,96080.0,96079.0,0.008]
[1739990531996,0.306119,96080.0,96079.0,0.008]
[1739990532336,1.318342,96080.0,96079.0,0.008]
[1739990532544,1.318342,96080.0,96079.0,0.004]
[1739990532747,1.320342,96080.0,96079.0,0.004]
[1739990532943,0.15,96079.0,96067.0,0.0751]
[1739990533153,0.156139,96068.0,96067.0,0.0751]
[1739990535551,0.156139,96068.0,96067.0,0.0771]
[1739990536134,0.156139,96068.0,96067.0,0.0751]
[1739990536335,0.156139,96068.0,96067.0,0.0771]
[1739990536536,0.156139,96068.0,96067.0,0.0811]
[1739990536915,0.156139,96068.0,96067.0,0.0791]
[1739990537763,0.156139,96068.0,96067.0,0.0751]
[1739990538285,0.156139,96068.0,96067.0,0.0791]
[1739990538498,0.156139,96068.0,96067.0,0.0771]
[1739990538714,0.208183,96070.0,96067.0,0.0771]
[1739990538920,0.156139,96068.0,96067.0,0.0791]
[1739990539580,0.156139,96068.0,96067.0,0.0751]
[1739990539792,0.156139,96068.0,96067.0,0.0771]
[1739990540660,0.156139,96068.0,96067.0,0.0791]
[1739990542651,0.156139,96068.0,96067.0,0.0771]
[1739990542863,0.156139,96068.0,96067.0,0.0791]
[1739990544615,0.156139,96068.0,96067.0,0.0799504]
[1739990544992,0.156139,96068.0,96067.0,0.0779504]
[1739990545409,0.156139,96068.0,96067.0,0.0809504]
[1739990545672,0.156139,96068.0,96067.0,0.0759504]
[1739990545874,0.156139,96068.0,96067.0,0.0809504]
[1739990546411,0.156139,96068.0,96067.0,0.0789504]
[1739990546613,0.156139,96068.0,96067.0,0.0799504]
[1739990547265,0.156139,96068.0,96067.0,0.0769504]
[1739990547672,0.156139,96068.0,96067.0,0.0789504]
[1739990554060,0.306139,96068.0,96067.0,0.0038504]
[1739990557888,0.3065644,96068.0,96067.0,0.0038504]
[1739990562966,0.16631327,96069.0,96068.0,0.00092579]
[1739990563167,0.32245027,96069.0,96068.0,0.00092579]
[1739990563753,0.306137,96069.0,96068.0,0.00092579]
[1739990564582,0.306137,96069.0,96068.0,0.00292579]
[1739990565026,0.462958,96069.0,96068.0,0.00292579]
[1739990565208,0.56546165,96069.0,96068.0,0.00292579]
[1739990565445,0.56546165,96069.0,96068.0,0.00392579]
[1739990566040,0.56546165,96069.0,96068.0,0.00292579]
[1739990566367,0.465958,96069.0,96068.0,0.00292579]
[1739990566579,0.309137,96069.0,96068.0,0.00292579]
[1739990566761,0.306137,96069.0,96068.0,0.00292579]
[1739990567214,0.32745058,96069.0,96068.0,0.00092579]
[1739990567627,0.51439858,96069.0,96068.0,0.00092579]
[1739990567844,0.51639858,96069.0,96068.0,0.00092579]
[1739990568050,0.51439858,96069.0,96068.0,0.00092579]
[1739990568524,0.51639858,96069.0,96068.0,0.00092579]
[1739990568856,0.51139858,96069.0,96068.0,0.00092579]
[1739990569288,0.51439858,96069.0,96068.0,0.00092579]
[1739990569707,0.02131358,96069.0,96068.0,0.00092579]
[1739990570071,0.02131358,96069.0,96068.0,0.12352579]
[1739990570072,0.02173898,96069.0,96068.0,0.12352579]
[1739990570278,0.0054254,96069.0,96068.0,0.27966479]
[1739990570694,0.0024254,96069.0,96068.0,0.27966479]
[1739990570879,0.0004254,96069.0,96068.0,0.38216844]
[1739990571083,0.0014254,96069.0,96068.0,0.38216844]
[1739990571385,0.0004254,96069.0,96068.0,0.38216844]
[1739990571833,0.0004254,96069.0,96068.0,0.38916844]
[1739990572061,0.0024254,96069.0,96068.0,0.38216844]
[1739990572289,0.0024254,96069.0,96068.0,0.38916844]
[1739990572498,0.0004254,96069.0,96068.0,0.38916844]
[1739990572911,0.0014254,96069.0,96068.0,0.39616844]
[1739990574009,0.0014254,96069.0,96068.0,0.50949964]
[1739990575805,0.0014254,96069.0,96068.0,0.52404049]
[1739990577258,0.20807,96122.0,96079.0,0.283521]
[1739990577515,0.156078,96106.0,96079.0,0.4005655]
[1739990577722,0.156083,96103.0,96079.0,0.4005655]
[1739990577928,0.15,96108.0,96079.0,0.4005655]
[1739990578137,0.15,96106.0,96079.0,0.4005655]
[1739990578326,0.208096,96110.0,96079.0,0.4005655]
[1739990578545,0.0430081,96095.0,96079.0,0.4045655]
[1739990578754,0.0430081,96095.0,96079.0,0.4005655]
[1739990579774,0.0014255,96080.0,96079.0,0.4075655]
[1739990580123,0.0014255,96080.0,96079.0,0.4145655]
[1739990580328,0.0014255,96080.0,96079.0,0.4075655]
[1739990580540,0.0014255,96080.0,96079.0,0.4145655]
[1739990581137,0.0004255,96080.0,96079.0,0.5208967]
[1739990581337,0.02073478,96127.0,96082.0,0.1274]
[1739990581562,0.156058,96118.0,96109.0,0.233772]
[1739990581762,0.01630648,96124.0,96112.0,0.208089]
[1739990581966,0.01630648,96124.0,96110.0,0.257793]
[1739990581967,0.01630648,96124.0,96113.0,0.10250365]
[1739990582397,0.156055,96120.0,96113.0,0.10250365]
[1739990582538,0.20807,96122.0,96113.0,0.10250365]
[1739990582740,0.19897106,96119.0,96113.0,0.25856865]
[1739990582941,0.04291406,96119.0,96114.0,0.156064]
[1739990583143,0.04291406,96119.0,96114.0,0.25856765]
[1739990583409,0.04291406,96119.0,96114.0,0.10250365]
[1739990583834,0.19897206,96119.0,96114.0,0.10250365]
[1739990584040,0.156058,96118.0,96114.0,0.10250365]
[1739990584241,0.04291406,96119.0,96114.0,0.10250365]